[Event "4NCL 2022-2023"]
[Site "Daventry"]
[Date "2023.01.14"]
[Round "3.18"]
[White "McClement, Andrew"]
[Black "Moreby, James"]
[Result "0-1"]
[ECO "B90"]
[WhiteElo "2220"]
[BlackElo "2347"]
[Annotator "TA"]
[PlyCount "150"]
[EventDate "2022.10.20"]
[EventType "team-tourn"]
[EventCountry "ENG"]
[SourceTitle "playchess.com"]
[Source "ChessBase"]
[SourceQuality "1"]
[TimeControl "40/6000+30:2400+30"]

{[%evp 29,149,8,16,7,59,58,106,106,126,111,108,127,105,60,66,54,102,91,96,87,132,100,108,125,155,80,74,77,379,391,591,-8,-8,-8,-8,-8,-8,-8,-8,-8,-8,-83,-80,-68,-86,-84,-70,-100,-99,-88,-80,-139,-1189,-1224,-1189,-925,-1051,-450,0,-80,0,0,0,0,0,0,0,0,0,0,0,-29976,-29977,-29976,-10746,-8201,-3850,-29980,-29981,-29982,-29983,-29985,-29983,-29982,-29983,-29983,-29984,-29984,-29985,-29985,-29986,-29986,-29987,-29987,-29988,-29988,-29989,-29989,-29989,-29989,-29990,-29990,-29991,-29992,-29993,-29993,-29994,-29996,-29997,-29997,-29998,-29998,-29999,-29999,-29999,-29999,-29999,-29999,-29999,-29999,-29999,-29999]} 1. e4 {[%emt 0:00:01]} c5 {[%emt 0:00:23]} 2. Nf3 {[%emt 0:00:02]} d6 {[%emt 0:00:06]} 3. d4 {[%emt 0:00:02]} cxd4 {[%emt 0:00:05]} 4. Nxd4 {[%emt 0:00:02]} Nf6 {[%emt 0:00:03]} 5. Nc3 {[%emt 0:00:02]} a6 {[%emt 0:00:11]} 6. Be3 {[%emt 0:00:03]} Ng4 {[%emt 0:00:05]} 7. Bg5 {[%emt 0:00:03]} h6 {[%emt 0:00:03]} 8. Bh4 {[%emt 0:00:03]} g5 {[%emt 0:00:04]} 9. Bg3 {[%emt 0:00:03]} Bg7 {[%emt 0:00:03]} 10. Be2 {[%emt 0:00:03]} h5 {[%emt 0:00:05]} 11. Bxg4 {[%emt 0:00:03]} Bd7 {[%emt 1:44:52]} 12. Bf5 Bxf5 {[%emt 0:00:00]} 13. f3 {[%emt 0:00:33]} Bd7 {[%emt 0:00:00]} 14. Qd2 {[%emt 0:00:02]} Nc6 {[%emt 0:00:00]} 15. Bf2 {[%emt 0:00:01]} Ne5 {[%emt 0:00:00]} 16. b3 {[%emt 0:00:10] B90: Sicilian Najdorf: Unusual White 6th moves, 6 Be3 Ng4 and 6 Be3 e5.} (16. Qxg5 $2 Bh6 17. Qg3 (17. Qxh5 $2 Bd2+ 18. Kxd2 Rxh5 $19) 17... h4 18. Qxh4 Ng6 $19) 16... Rc8 {[%emt 0:00:00]} (16... h4 $11) 17. Nd5 $1 $14 {[%emt 0:14:24] [#]} b5 $146 {[%emt 0:00:00]} (17... Rc5 $14) ({Predecessor:} 17... h4 18. h3 e6 19. Nf5 exd5 20. Nxg7+ Kf8 21. Nf5 Bxf5 22. exf5 Qf6 23. O-O Qxf5 24. Qxd5 Rxc2 25. Qxb7 {1-0 Firouzja,A (2558)-Darini,P (2497) IRI-ch Bushehr 2018 (8)}) 18. O-O-O $16 {[%emt 0:12:02] White is better.} (18. Qxg5 Bh6 19. Qg3 (19. Qxh5 $2 Bd2+ {[%mdl 64] Discovered Attack} 20. Kxd2 Rxh5 $19) (19. Qh4 $2 Ng6 $19) 19... h4 20. Qxh4 Ng6 $15) 18... Be6 {[%emt 0:00:00]} 19. Kb1 {[%emt 0:01:18]} (19. Qxg5 $2 {loses.} Bh6 $19) 19... Bxd5 {[%emt 0:00:00]} 20. exd5 {[%emt 0:00:13]} Bf6 {[%emt 0:00:00]} 21. Rhe1 {[%emt 0:08:19][%cal Oh2h4]} Qd7 {[%emt 0:00:00]} 22. h3 {[%emt 0:03:16]} (22. Be3 $5 {[%cal Re3g5]}) 22... Kf8 {[%emt 0:00:00]} (22... Rg8 $14) 23. f4 $1 {[%emt 0:00:54]} gxf4 {[%emt 0:00:00]} 24. Qxf4 {[%emt 0:00:04]} Qb7 {[%emt 0:00:00]} 25. Qe4 {[%emt 0:06:38]} Rg8 {[%emt 0:00:00]} 26. Nf5 {[%emt 0:07:56]} (26. Be3 {simplifies} a5 27. Bh6+ Ke8 28. Bf4) 26... Nc4 {[%emt 0:00:44] White must now prevent ...Na3+.} 27. bxc4 {[%emt 0:01:51]} ({White should try} 27. Re2 $1) 27... bxc4+ {[%emt 0:00:35]} 28. Kc1 {[%emt 0:00:01] Kd2 is the strong threat.} Rxg2 $2 {[%emt 0:02:49][%mdl 8192]} 29. Qxg2 $18 {[%emt 0:09:23]} c3 {[%emt 0:00:08] [#]} (29... Qb2+ {was worth a try.} 30. Kd2 Qc3+ 31. Ke2 Qxc2+ 32. Rd2 Qxf5) 30. Rd4 $1 {[%emt 0:01:13]} Qb2+ $1 $11 {[%emt 0:01:21]} 31. Kd1 {[%emt 0:00:01]} Qb1+ {[%emt 0:00:09]} 32. Ke2 {[%emt 0:00:03]} Qxc2+ {[%emt 0:00:07]} 33. Kf1 {[%emt 0:00:16]} Qxf5 {[%emt 0:00:36]} 34. Qe4 {[%emt 0:12:59]} Qxh3+ {[%emt 0:00:06]} 35. Kg1 {[%emt 0:00:09]} (35. Ke2 $1 $11) 35... Bxd4 $17 {[%emt 0:01:20]} 36. Bxd4 {[%emt 0:00:25]} (36. Qxe7+ $2 {too greedy.} Kg8 37. Bxd4 Qg3+ 38. Kh1 Qf3+ 39. Kg1 Qg4+ 40. Kh2 Qf4+ 41. Kh3 Qxd4 $19) 36... Qg4+ {[%emt 0:01:50]} (36... Qg3+ {feels hotter.} 37. Kf1 c2 38. Bb2 Rc7) 37. Qxg4 {[%emt 0:00:02]} hxg4 {[%emt 0:00:04][%mdl 4096] Endgame KRB-KR} 38. Kf2 {[%emt 0:00:04]} c2 {[%emt 0:01:31]} 39. Rh1 {[%emt 0:00:20][%cal Rh1h8]} Ke8 {[%emt 0:00:18]} (39... c1=B $2 40. Rh8#) 40. Rh8+ $2 {[%emt 0:06:57][%mdl 8192]} (40. Be3 $17) 40... Kd7 $19 {[%emt 0:00:01]} 41. Rxc8 {[%emt 0:40:08]} Kxc8 {[%emt 0:40:06] KB-KP} 42. Be3 {[%emt 0:00:03]} Kd7 {[%emt 0:03:07]} 43. Ke2 {[%emt 0:02:22]} e5 $2 {[%emt 0:00:00]} (43... e6 $19 44. Kd2 exd5) 44. Kd3 {[%emt 0:00:00]} (44. Kd2 $11 {remains equal.}) 44... f5 {[%emt 0:00:00]} (44... Ke7 $1 $17 {[%cal Re7f6]} 45. Kxc2 Kf6) 45. Kxc2 $11 {[%emt 0:00:00]} f4 {[%emt 0:00:00]} 46. Bb6 {[%emt 0:00:00]} e4 {[%emt 0:00:00]} 47. Kd2 {[%emt 0:00:00]} Ke7 {[%emt 0:00:00]} 48. Bc7 $1 {[%emt 0:00:00]} g3 {[%emt 0:00:00]} 49. Ke2 {[%emt 0:00:00]} f3+ {[%emt 0:00:00]} 50. Ke1 $2 {[%emt 0:00:00][%mdl 8192] [#]} (50. Kf1 e3 51. a3 g2+ 52. Kg1 e2 $19) (50. Kd2 $11) 50... e3 $1 {[%emt 0:00:00]} 51. Bb6 {[%emt 0:00:00] [#]} e2 $1 {[%emt 0:00:00] ( -> ...Kf6)} 52. Be3 {[%emt 0:00:00]} g2 {[%emt 0:00:00]} (52... Kf6 $142 53. Bf4 g2) 53. a4 {[%emt 0:00:00]} Kf6 {[%emt 0:00:00] Black mates.} 54. a5 {[%emt 0:00:00]} Kf5 {[%emt 0:00:00]} 55. Bf2 {[%emt 0:00:00]} Ke4 {[%emt 0:00:00]} 56. Kd2 {[%emt 0:00:00]} Kxd5 {[%emt 0:00:00]} 57. Bg1 {[%emt 0:00:00]} Kc4 {[%emt 0:00:00]} 58. Bf2 {[%emt 0:00:00]} d5 {[%emt 0:00:00]} 59. Bg1 {[%emt 0:00:00]} Kb5 {[%emt 0:00:00]} 60. Bb6 {[%emt 0:00:00] [#]} d4 $1 {[%emt 0:00:00][%mdl 576] Deflection} 61. Bxd4 {[%emt 0:00:00]} Kxa5 {[%emt 0:00:00]} 62. Ke1 {[%emt 0:00:00]} Kb4 {[%emt 0:00:00]} 63. Be3 {[%emt 0:00:00]} Kb3 {[%emt 0:00:00]} 64. Kd2 {[%emt 0:03:51]} a5 {[%emt 0:00:00]} 65. Bb6 {[%emt 0:00:05]} a4 {[%emt 0:00:00]} 66. Bc5 {[%emt 0:00:03]} a3 {[%emt 0:00:00]} 67. Bf2 {[%emt 0:00:11]} a2 {[%emt 0:00:00]} 68. Bd4 {[%emt 0:00:22] [#]} a1=Q $1 {[%emt 0:00:00][%mdl 576] Deflection, Promotion} 69. Bxa1 {[%emt 0:00:10]} (69. Ke3 g1=Q+) 69... g1=Q {[%emt 0:00:00]} 70. Be5 {[%emt 0:00:25]} e1=Q+ {[%emt 0:00:00]} 71. Kd3 {[%emt 0:00:03]} Qxe5 {[%emt 0:00:00][%csl Gf3][%cal Re5e2]} 72. Kd2 {[%emt 0:00:06]} f2 {[%emt 0:00:00]} 73. Kd3 {[%emt 0:00:04]} f1=Q+ {[%emt 0:00:00]} 74. Kd2 {[%emt 0:00:05]} Qff2+ {[%emt 0:00:00]} 75. Kd3 {[%emt 0:00:07]} Qee3# {[%emt 0:00:00] A wild game. A superb game by Moreby.   Weighted Error Value: White=0.46/Black=0.39} 0-1

[Event "4NCL 2022-2023"]
[Site "Daventry"]
[Date "2023.01.14"]
[Round "3.19"]
[White "Grieve, Harry"]
[Black "Gallagher, Daniel GH"]
[Result "1/2-1/2"]
[ECO "B98"]
[WhiteElo "2438"]
[BlackElo "2204"]
[Annotator "TA"]
[PlyCount "101"]
[EventDate "2022.10.20"]
[EventType "team-tourn"]
[EventCountry "ENG"]
[SourceTitle "playchess.com"]
[Source "ChessBase"]
[SourceQuality "1"]
[TimeControl "40/6000+30:2400+30"]

{[%evp 16,101,34,32,34,33,44,28,45,11,45,1,1,5,4,5,68,3,56,0,7,0,79,0,0,-18,299,293,287,285,288,27,51,32,135,104,87,0,29,0,0,0,0,0,6,0,0,0,0,0,0,0,16,0,7,7,7,0,0,0,0,-9,-9,-11,-8,-100,-97,-232,-232,-232,-232,-232,-170,-170,-18,-18,-18,-18,-12,-12,-12,-12,-12,-12,8,8,8,8]} 1. e4 {[%emt 0:00:02]} c5 {[%emt 0:00:04]} 2. Nf3 {[%emt 0:00:05]} d6 {[%emt 0:00:09]} 3. d4 {[%emt 0:00:06]} cxd4 {[%emt 0:00:05]} 4. Nxd4 {[%emt 0:00:02]} Nf6 {[%emt 0:00:15]} 5. Nc3 {[%emt 0:00:05]} a6 {[%emt 0:00:27]} 6. Bg5 {[%emt 0:00:08]} e6 {[%emt 0:00:14]} 7. f4 {[%emt 0:00:18]} h6 {[%emt 0:00:36]} 8. Bh4 {[%emt 0:00:06]} Be7 {[%emt 0:00:08]} 9. Qf3 $1 {[%emt 0:00:23]} Nc6 {[%emt 1:43:02] B98: Sicilian Najdorf: 6 Bg5 e6 7 f4 Be7, sidelines.} 10. O-O-O {[%emt 0:05:28]} Nxd4 {[%emt 0:00:00]} 11. Rxd4 {[%emt 0:00:05] And now e5 would win.} Qb6 {[%emt 0:00:00] White has an edge.} 12. Rd2 {[%emt 0:06:49] Threatens to win with e5.} (12. a3 $5) 12... Qa5 {[%emt 0:00:00] [#]} 13. Kb1 $146 {[%emt 0:08:25]} ({Predecessor:} 13. a3 Bd7 14. e5 Bc6 15. Qg3 g5 16. Qe1 gxh4 17. exf6 Bxf6 18. Ne4 Bxe4 19. Qxe4 Bxb2+ {0-1 Kollias,I (1737)-Kanakaris,G (2389) GRE CupT final 40th 2022 (1.4)}) 13... Bd7 $1 {[%emt 0:00:00]} 14. Be2 {[%emt 0:16:52]} Bc6 {[%emt 0:00:00]} 15. Rhd1 $36 {[%emt 0:15:27][%mdl 2048] White has good play.} O-O-O {[%emt 0:00:00]} ({Better is} 15... d5 $11) 16. Qe3 {[%emt 0:08:25]} (16. Rd4 $14) 16... g5 {[%emt 0:00:00]} (16... Qc5 $1 $11 17. Qxc5 dxc5) 17. Bg3 {[%emt 0:06:57]} (17. Bf2 $14) 17... Qc5 $1 $11 {[%emt 0:00:00]} 18. Qf3 {[%emt 0:05:42]} d5 {[%emt 0:00:00]} (18... g4 $1 $11 19. Qf1 (19. Qd3 d5 $15) 19... Nxe4 20. Nxe4 Bxe4) 19. exd5 {[%emt 0:02:31]} (19. fxg5 $16 hxg5 20. exd5 Nxd5 21. Nxd5 (21. Qxf7 Nxc3+ 22. bxc3 Rxd2 $11 {[%mdl 64] Remove Defender}) 21... Bxd5 22. Qxf7) 19... Nxd5 {[%emt 0:00:00]} 20. Ne4 {[%emt 0:07:58]} Qa5 {[%emt 0:00:00][%mdl 8192]} (20... Nc3+ $1 $11 21. Qxc3 (21. Nxc3 $2 Bxf3 22. Bxf3 Rxd2 $19) (21. bxc3 Rxd2 22. Rxd2 Qb6+ 23. Ka1 Ba3 $17) 21... Bxe4) 21. fxg5 $18 {[%emt 0:04:21]} Rhf8 {[%emt 0:01:47]} 22. gxh6 {[%emt 0:15:12]} f5 {[%emt 0:01:06] [#]} 23. Nc3 {[%emt 0:00:01]} (23. Nf2 f4 24. Ne4 fxg3 25. Qxg3 Qc7 $15) ({Only move:} 23. h7 $1 $18 {[%cal Od2d4] Rd4! is the strong threat.} Qb6 24. Be5 fxe4 25. Qh3) 23... f4 {[%emt 0:00:49]} 24. Bf2 {[%emt 0:02:09] aiming for Qg4.} (24. Qg4 $2 Nxc3+ 25. bxc3 Rxd2 26. Rxd2 (26. Qxe6+ $2 Rd7 $19) 26... Qb6+ 27. Ka1 Qe3 $19) (24. Be1 $5 {[%cal Rc3d5]} Ne3 25. Qh3 $16 (25. Rxd8+ Bxd8 26. Qh3 Nxd1 $11)) 24... Ne3 {[%emt 0:00:49] Inhibits Qg4.} 25. Rxd8+ {[%emt 0:01:38]} Bxd8 {[%emt 0:00:18]} 26. Qh3 {[%emt 0:00:02]} (26. Rxd8+ $16 Qxd8 27. Qh5) 26... Nxd1 $11 {[%emt 0:00:33]} 27. Qxe6+ {[%emt 0:00:25]} Bd7 {[%emt 0:00:24]} 28. Qc4+ {[%emt 0:00:01]} Qc7 $1 {[%emt 0:00:27]} 29. Qxc7+ {[%emt 0:01:27]} ({Much weaker is} 29. Nxd1 Qxc4 30. Bxc4 Rh8 $17) 29... Bxc7 {[%emt 0:00:14]} 30. Bxd1 {[%emt 0:00:01]} ({Of course not} 30. Nxd1 Rh8 31. h4 Rxh6 $17) 30... Rh8 {[%emt 0:00:09]} 31. Nd5 {[%emt 0:02:43]} Rxh6 {[%emt 0:00:16]} 32. h3 {[%emt 0:00:01]} b5 {[%emt 0:02:45]} 33. Bf3 {[%emt 0:00:43]} Be6 {[%emt 0:01:07]} 34. Kc1 {[%emt 0:01:50]} Bxd5 {[%emt 0:01:09]} 35. Bxd5 {[%emt 0:00:01]} Bb6 {[%emt 0:00:15]} 36. Bxb6 {[%emt 0:00:39]} Rxb6 {[%emt 0:00:04][%mdl 4096] Endgame KR-KB} 37. c4 {[%emt 0:00:52]} bxc4 {[%emt 0:01:04]} 38. Bxc4 {[%emt 0:00:17]} Rc6 {[%emt 0:00:18]} 39. b3 {[%emt 0:00:02]} a5 {[%emt 0:00:06]} 40. Kd2 {[%emt 0:01:38]} (40. Kc2 $11 {remains equal.}) 40... Rg6 $17 {[%emt 0:01:02]} 41. Ke2 {[%emt 0:00:00]} (41. Bf1 $17) 41... Rxg2+ $19 {[%emt 0:00:00]} 42. Kf3 {[%emt 0:00:00]} Rxa2 {[%emt 0:00:00] Strongly threatening ...Kc7.} 43. Kxf4 {[%emt 0:00:00]} Kd8 {[%emt 0:00:00]} 44. Ke5 {[%emt 0:02:51] [#]} Rh2 $2 {[%emt 0:00:00]} (44... Kc7 $1 $19 {White must now prevent ...Rf2.} 45. Kd4 Rf2) 45. Kd6 $11 {[%emt 0:00:02] The position is equal.} Rxh3 {[%emt 0:00:00]} 46. Kc6 {[%emt 0:00:06]} Rh5 {[%emt 0:03:18]} 47. Kb6 {[%emt 0:01:14]} Ke7 {[%emt 0:00:28]} 48. Bb5 {[%emt 0:00:42]} Rh3 {[%emt 0:00:06]} 49. Ba4 {[%emt 0:04:07]} Rxb3+ {[%emt 0:01:27]} 50. Bxb3 {[%emt 0:00:07]} a4 {[%emt 0:00:03]} 51. Bxa4 {[%emt 0:00:08] What a bad dream for Black. An exciting game.   Weighted Error Value: White=0.29 (precise) /Black=0.27 (precise)} 1/2-1/2

[Event "4NCL 2022-2023"]
[Site "Daventry"]
[Date "2023.01.14"]
[Round "3.20"]
[White "Hill, Alistair"]
[Black "Roberson, Peter T"]
[Result "0-1"]
[ECO "B12"]
[WhiteElo "2172"]
[BlackElo "2419"]
[Annotator "TA"]
[PlyCount "68"]
[EventDate "2022.10.20"]
[EventType "team-tourn"]
[EventCountry "ENG"]
[SourceTitle "playchess.com"]
[Source "ChessBase"]
[SourceQuality "1"]
[TimeControl "40/6000+30:2400+30"]

{[%evp 9,68,0,0,0,0,-36,-16,-34,-32,-35,-13,-45,-43,-107,-42,-62,-54,-52,-30,-60,-22,-32,-20,-118,-64,-46,-57,-75,-43,-35,-8,-27,0,0,8,12,72,70,97,108,153,143,187,183,224,217,227,226,213,153,138,-573,-508,-669,-664,-1486,-1377,-29992,-5114,-2215,-1630]} 1. e4 {[%emt 0:10:02]} c6 {[%emt 0:02:21]} 2. d4 {[%emt 0:00:06]} d5 {[%emt 0:00:04]} 3. f3 {[%emt 0:01:05]} e6 {[%emt 0:01:09]} 4. Nc3 {[%emt 0:00:07]} Bb4 {[%emt 0:01:23]} 5. Bd2 {[%emt 0:01:49]} Ne7 {[%emt 0:01:48]} 6. a3 {[%emt 0:01:25] B12: Caro-Kann: Advance Variation.} Ba5 {[%emt 0:01:33]} 7. Nge2 {[%emt 0:24:25]} O-O {[%emt 0:02:28]} 8. Bg5 {[%emt 0:01:08] The position is equal.} Nd7 {[%emt 0:10:46]} 9. Qd2 {[%emt 0:01:28] [#]} b5 $146 {[%emt 0:07:55]} ({Predecessor:} 9... f6 10. Be3 e5 11. b4 Bb6 12. exd5 cxd5 13. Rd1 Re8 14. g4 Nc6 15. Nxd5 exd4 16. Nxb6 {0-1 Lie,K (2284)-Ledger,A (2441) Bergen Sommer op 2000 (8)}) 10. Nc1 {[%emt 0:03:28]} Bb6 {[%emt 0:04:56]} 11. e5 {[%emt 0:15:59]} (11. N1e2 $15) 11... f6 {[%emt 0:19:48]} (11... h6 $17 12. Bxe7 Qxe7) 12. exf6 $15 {[%emt 0:00:15]} gxf6 {[%emt 0:00:39]} 13. Be3 {[%emt 0:01:12]} Nf5 {[%emt 0:08:48]} 14. Bf2 {[%emt 0:01:31]} e5 {[%emt 0:08:38][%cal Re5d4]} (14... Qe7 $5 {[%cal Re6e5]} 15. Nb3 a5 $15) 15. Nb3 {[%emt 0:01:45]} a5 {[%emt 0:01:56] aiming for ...a4.} 16. dxe5 {[%emt 0:02:03]} (16. Bd3 $1 $11 {keeps the balance.} Nxd4 17. Nxd4 (17. Qh6 Qe7 $17) 17... Bxd4 18. Bxd4 (18. Qh6 $2 Bxf2+ 19. Kxf2 Rf7 $17) 18... exd4 19. Ne2) 16... Bxf2+ {[%emt 0:10:27]} ({Stronger than} 16... Nxe5 17. O-O-O $15) ({Black should try} 16... fxe5 $17 17. Bd3 a4 18. Bxf5 Bxf2+ 19. Qxf2 Rxf5) 17. Qxf2 {[%emt 0:01:26]} fxe5 {[%emt 0:00:26]} 18. Bd3 {[%emt 0:04:03]} Nf6 {[%emt 0:05:35]} (18... Ng7 $5 {[%cal Ra5a4]}) 19. O-O {[%emt 0:04:06]} d4 {[%emt 0:03:09] Threatens to win with ...a4.} (19... a4 $5 {[%cal Ra4b3]} 20. Bxf5 Bxf5 $15) 20. Nd1 {[%emt 0:01:26]} Kh8 {[%emt 0:03:14]} 21. Re1 {[%emt 0:03:13]} Qd6 {[%emt 0:03:57]} 22. a4 {[%emt 0:01:36]} bxa4 {[%emt 0:04:22]} (22... Nd5 $11) 23. Rxa4 $16 {[%emt 0:00:18]} Nd5 {[%emt 0:00:38]} 24. Rxa5 {[%emt 0:02:02]} Rb8 {[%emt 0:00:57] [#]} 25. Nd2 $1 {[%emt 0:02:42]} Nfe3 {[%emt 0:03:22]} 26. Nxe3 {[%emt 0:14:55]} dxe3 {[%emt 0:00:02]} 27. Qh4 $40 {[%emt 0:00:06][%csl Gd3][%cal Rh4h7][%mdl 128] White attacks with force.} Bf5 {[%emt 0:02:33] [#]} 28. Nc4 {[%emt 0:00:39][%csl LRd6,LRe3]} Qc7 {[%emt 0:00:42]} 29. Ra3 {[%emt 0:03:29]} Bxd3 {[%emt 0:00:21]} 30. Rxd3 $4 {[%emt 0:00:05][%mdl 8192]} (30. cxd3 $16 {is necessary to keep the advantage. Rea1 would be deadly.} Qg7 31. Qg3 (31. Nxe3 Rxb2 32. Qg3 Nf4 $14)) 30... Rf4 $19 {[%emt 0:00:39][%cal Bf8f4,Bf4c4,Bc4c2,Bc2g2][%mdl 32]} 31. Qh3 {[%emt 0:05:44]} Rxc4 {[%emt 0:00:06]} 32. Rexe3 {[%emt 0:00:04]} Rxc2 {[%emt 0:01:07]} 33. Re4 {[%emt 0:00:30]} Rbxb2 {[%emt 0:00:27]} (33... Qa7+ $142 34. Red4 Nf4 35. Qh4 Rc1+ 36. Qe1 Rxe1+ 37. Kf2 Nxd3+ 38. Kg3 Qxd4 39. f4 Qxf4+ 40. Kh3 Nf2#) 34. Rd1 {[%emt 0:01:02]} Rxg2+ {[%emt 0:00:21] Quite a comeback for Black.   Weighted Error Value: White=0.73/Black=0.38} 0-1

[Event "4NCL 2022-2023"]
[Site "Daventry"]
[Date "2023.01.14"]
[Round "3.21"]
[White "Rendle, Thomas E"]
[Black "Lee, Richard W Y"]
[Result "1/2-1/2"]
[ECO "C10"]
[WhiteElo "2388"]
[BlackElo "2108"]
[Annotator "TA"]
[PlyCount "99"]
[EventDate "2022.10.20"]
[EventType "team-tourn"]
[EventCountry "ENG"]
[SourceTitle "playchess.com"]
[Source "ChessBase"]
[SourceQuality "1"]
[TimeControl "40/6000+30:2400+30"]

{[%evp 14,99,29,20,31,34,23,21,30,0,18,6,7,10,10,2,4,0,1,0,0,0,0,0,0,0,0,-24,-25,-23,-24,-22,-10,-7,-14,-15,-15,-10,-10,-14,-2,-6,-6,-35,-27,-24,-23,-43,-11,-47,-31,-44,0,-11,0,-111,-97,-85,-114,-101,-61,-75,-56,-173,0,0,0,-307,-104,-95,-95,-134,-137,-116,-13,-68,-70,-158,-146,-305,-137,-156,-153,-199,-145,-135,-24,-24]} 1. e4 {[%emt 0:00:17]} e6 {[%emt 0:03:29]} 2. d4 {[%emt 0:00:53]} d5 {[%emt 0:01:06]} 3. Nd2 {[%emt 0:00:14]} dxe4 {[%emt 0:00:35]} 4. Nxe4 {[%emt 0:00:16]} Nd7 {[%emt 0:00:22]} 5. Nf3 {[%emt 0:04:20]} Ngf6 {[%emt 0:00:11]} 6. Nxf6+ {[%emt 0:00:32]} Nxf6 {[%emt 0:00:08]} 7. c3 {[%emt 0:04:22]} c5 {[%emt 0:00:23]} 8. Ne5 {[%emt 0:11:51] 8.Be3 deserves study.} a6 {[%emt 0:02:10] Repels Bb5+. C10: French with 3 Nc3: Unusual Black 3rd moves and 3...dxe4.} 9. Be3 {[%emt 0:05:57]} Qc7 {[%emt 0:01:53]} 10. Qa4+ {[%emt 0:08:57]} Nd7 {[%emt 0:00:22] The position is equal.} 11. Rd1 {[%emt 0:05:47]} cxd4 {[%emt 0:13:15]} (11... Rb8 $5 {[%cal Rb7b5]}) 12. Nxd7 {[%emt 0:10:16]} ({Don't play} 12. Bxd4 b5 13. Bxb5 axb5 14. Qxa8 Nxe5 $15) 12... Bxd7 {[%emt 0:20:24]} 13. Qxd4 {[%emt 0:02:52] [#]} e5 $146 {[%emt 0:02:17] Dodges Bf4} ({Predecessor:} 13... Bc6 14. f3 Rd8 15. Qxd8+ Qxd8 16. Rxd8+ Kxd8 17. Bb6+ Ke8 18. Bd3 Bd6 19. Ke2 Ke7 {½-½ Pinter,E (2410)-Erdos,V (2473) Mitropa Cup 23th 2004 (1.4)}) 14. Qc4 {[%emt 0:02:24]} Rc8 {[%emt 0:02:40][%cal Ba8c8,Bc8c7,Bc7d7][%mdl 32]} 15. Qxc7 {[%emt 0:00:58]} Rxc7 {[%emt 0:00:05]} 16. Be2 {[%emt 0:00:21]} Be6 {[%emt 0:15:23]} 17. Bf3 {[%emt 0:02:54]} Bxa2 {[%emt 0:04:27]} 18. Bb6 {[%emt 0:00:57]} Rd7 {[%emt 0:02:15]} 19. O-O {[%emt 0:05:58]} Be7 {[%emt 0:06:37]} 20. Bg4 {[%emt 0:16:06]} Be6 {[%emt 0:03:05]} 21. Bxe6 {[%emt 0:00:48]} fxe6 {[%emt 0:00:06]} 22. Rfe1 {[%emt 0:02:58]} Rf8 {[%emt 0:04:43]} 23. Rxd7 {[%emt 0:05:35]} Kxd7 {[%emt 0:00:04]} 24. Rxe5 $11 {[%emt 0:00:16][%mdl 4096] Endgame KRB-KRB} Rf5 {[%emt 0:01:27]} 25. Re2 {[%emt 0:02:16]} Rd5 {[%emt 0:02:48] ( -> ...Rd1+)} 26. g3 {[%emt 0:01:46]} Bf6 {[%emt 0:00:45]} 27. Kg2 {[%emt 0:01:05]} Kd6 {[%emt 0:04:33]} 28. Ba7 {[%emt 0:02:21]} Rd3 {[%emt 0:04:29]} 29. h4 {[%emt 0:00:50]} h5 {[%emt 0:01:12]} 30. Be3 {[%emt 0:01:10]} b5 {[%emt 0:02:42]} 31. Bb6 {[%emt 0:02:38]} Kd5 {[%emt 0:01:04]} 32. Bc7 {[%emt 0:01:23]} Kc6 {[%emt 0:05:45]} 33. Bf4 {[%emt 0:00:57]} (33. Rxe6+ $2 {too greedy.} Kxc7 34. g4 hxg4 35. Rxa6 g3 $19) 33... Kd5 {[%emt 0:00:11]} 34. Bg5 {[%emt 0:01:09]} (34. Bc7 $1 $11) 34... a5 $17 {[%emt 0:01:52]} 35. f3 {[%emt 0:01:24]} Be5 $1 {[%emt 0:02:13]} 36. Kf2 {[%emt 0:01:47]} Bd6 {[%emt 0:01:29]} 37. g4 {[%emt 0:00:47]} g6 {[%emt 0:00:37]} 38. Bf6 {[%emt 0:00:29]} (38. Re4 $15 Rd1 39. gxh5 gxh5 40. Ke2) 38... Bf4 $2 {[%emt 0:01:13]} (38... hxg4 $19 39. fxg4 Bf4) 39. gxh5 {[%emt 0:01:40]} gxh5 {[%emt 0:00:16]} 40. Bg5 $2 {[%emt 0:00:04][%mdl 8192]} (40. Re4 $1 $11 {and White stays safe.} Bc1 41. Ke2 Rd2+ 42. Ke1) 40... Be5 $2 {[%emt 0:00:58]} (40... e5 $19 {has better winning chances. ...a4 is the strong threat.} 41. Rc2 a4) 41. Re4 {[%emt 0:00:00] [#] And now Ke2 would win.} Rd1 $1 {[%emt 0:00:00]} 42. Re2 {[%emt 0:00:00]} Rh1 {[%emt 0:01:12]} 43. Ke3 {[%emt 0:03:22]} Rh3 {[%emt 0:13:27]} ({Black should try} 43... Bg3 $17 44. f4 Rh2 45. Rxh2 Bxh2) 44. Bd8 {[%emt 0:09:16]} (44. Rd2+ $11 Kc4 45. Rd8) 44... a4 $15 {[%emt 0:00:19] ...Kc4 would be deadly.} 45. Be7 {[%emt 0:00:05]} (45. Rd2+ $15 Kc4 46. Be7) 45... Kc4 {[%emt 0:11:03]} 46. Kd2 $2 {[%emt 0:07:28] [#]} (46. Rd2 $17) 46... Bf4+ {[%emt 0:02:56]} (46... Rh2 $1 $19 {is more deadly.} 47. Rxh2 Bxh2) 47. Kc2 $17 {[%emt 0:00:08] Strongly threatening Re4+.} e5 {[%emt 0:01:55]} 48. Re4+ {[%emt 0:02:26]} Kd5 {[%emt 0:00:07]} 49. Rb4 {[%emt 0:00:09]} Kc6 {[%emt 0:02:54]} (49... Rxf3 $17 {Threatens to win with ...Ke6.} 50. Rxb5+ Ke6) 50. c4 $1 {[%emt 0:00:44] Weighted Error Value: White=0.31/Black=0.27 (precise)} 1/2-1/2